[Event "Early-Titled-Tuesday-Blitz-March-12-2024"]
[Site "Chess.com"]
[Date "2024.03.12"]
[Round "4"]
[White "KnightmareJoker"]
[Black "amylazy"]
[Result "0-1"]
[WhiteElo "2201"]
[BlackElo "2420"]
[TimeControl "180+1"]
[EndTime "8:39:44 PDT"]
[Termination "amylazy won by checkmate"]

1. e4 {[%clk 0:03:00.9]} 1... c5 {[%clk 0:02:56.6]} 2. Nf3 {[%clk 0:03:00.8]}
2... e6 {[%clk 0:02:51.2]} 3. d4 {[%clk 0:02:59.3]} 3... cxd4 {[%clk 0:02:51]}
4. Nxd4 {[%clk 0:03:00]} 4... a6 {[%clk 0:02:51.9]} 5. c4 {[%clk 0:02:56.8]}
5... Nf6 {[%clk 0:02:51.1]} 6. Nc3 {[%clk 0:02:57.1]} 6... Qc7 {[%clk
0:02:51.7]} 7. Be3 {[%clk 0:02:54.1]} 7... b6 {[%clk 0:02:49.8]} 8. Be2 {[%clk
0:02:53.4]} 8... Bb7 {[%clk 0:02:50.3]} 9. f3 {[%clk 0:02:52.3]} 9... d6 {[%clk
0:02:50.8]} 10. O-O {[%clk 0:02:51.5]} 10... Nbd7 {[%clk 0:02:51.7]} 11. b3
{[%clk 0:02:47.6]} 11... Be7 {[%clk 0:02:51.9]} 12. Qc2 {[%clk 0:02:37.7]} 12...
O-O {[%clk 0:02:51]} 13. Rad1 {[%clk 0:02:37.9]} 13... Rac8 {[%clk 0:02:47.8]}
14. Kh1 {[%clk 0:02:17.5]} 14... Rfe8 {[%clk 0:02:36.6]} 15. Qd2 {[%clk
0:02:12.3]} 15... d5 {[%clk 0:02:24.6]} 16. exd5 {[%clk 0:01:59.2]} 16... exd5
{[%clk 0:02:24.6]} 17. cxd5 {[%clk 0:01:57.5]} 17... Qxc3 {[%clk 0:02:23.3]} 18.
Qxc3 {[%clk 0:01:17.4]} 18... Rxc3 {[%clk 0:02:20.7]} 19. Bd2 {[%clk 0:01:18]}
19... Rcc8 {[%clk 0:02:15.1]} 20. Nf5 {[%clk 0:01:15.2]} 20... Nxd5 {[%clk
0:02:15]} 21. Bc4 {[%clk 0:01:12.5]} 21... Bf8 {[%clk 0:02:07.8]} 22. Bc1 {[%clk
0:01:01.6]} 22... N7f6 {[%clk 0:02:06.5]} 23. Bg5 {[%clk 0:00:52.8]} 23... b5
{[%clk 0:02:06.4]} 24. Bd3 {[%clk 0:00:46.8]} 24... g6 {[%clk 0:01:59.3]} 25.
Bxf6 {[%clk 0:00:39.7]} 25... Nxf6 {[%clk 0:01:58.2]} 26. Ng3 {[%clk 0:00:36.3]}
26... Rcd8 {[%clk 0:01:57.5]} 27. Kg1 {[%clk 0:00:29.7]} 27... Bc5+ {[%clk
0:01:56.2]} 28. Kh1 {[%clk 0:00:30.4]} 28... Re3 {[%clk 0:01:50]} 29. Be2 {[%clk
0:00:28.7]} 29... Rxd1 {[%clk 0:01:49]} 30. Rxd1 {[%clk 0:00:29.6]} 30... Nd5
{[%clk 0:01:45.4]} 31. h3 {[%clk 0:00:22.8]} 31... Bd6 {[%clk 0:01:41.5]} 32.
Ne4 {[%clk 0:00:19.4]} 32... Bf4 {[%clk 0:01:41]} 33. Nd6 {[%clk 0:00:20.1]}
33... Bxd6 {[%clk 0:01:39.1]} 34. Bf1 {[%clk 0:00:19.2]} 34... Bg3 {[%clk
0:01:35]} 35. a4 {[%clk 0:00:17.1]} 35... bxa4 {[%clk 0:01:33.3]} 36. bxa4
{[%clk 0:00:15.6]} 36... Re1 {[%clk 0:01:31.2]} 37. Rxe1 {[%clk 0:00:13.4]}
37... Bxe1 {[%clk 0:01:32.1]} 38. a5 {[%clk 0:00:13.5]} 38... Bxa5 {[%clk
0:01:31]} 39. h4 {[%clk 0:00:14.4]} 39... Bc7 {[%clk 0:01:31.1]} 40. h5 {[%clk
0:00:15.3]} 40... gxh5 {[%clk 0:01:31.2]} 41. g4 {[%clk 0:00:14.6]} 41... h4
{[%clk 0:01:31.3]} 42. g5 {[%clk 0:00:14.4]} 42... Nf4 {[%clk 0:01:31.2]} 43. g6
{[%clk 0:00:13.5]} 43... Bxf3+ {[%clk 0:01:31.2]} 44. Kh2 {[%clk 0:00:12.8]}
44... hxg6 {[%clk 0:01:30.7]} 45. Bc4 {[%clk 0:00:09.8]} 45... g5 {[%clk
0:01:30]} 46. Kg1 {[%clk 0:00:09.9]} 46... g4 {[%clk 0:01:30]} 47. Kh2 {[%clk
0:00:10.8]} 47... g3+ {[%clk 0:01:30]} 48. Kg1 {[%clk 0:00:10.5]} 48... h3
{[%clk 0:01:29.2]} 49. Kf1 {[%clk 0:00:08]} 49... h2 {[%clk 0:01:29.5]} 50. Ke1
{[%clk 0:00:05.3]} 50... h1=Q+ {[%clk 0:01:29.9]} 51. Kd2 {[%clk 0:00:06.2]}
51... Qd1+ {[%clk 0:01:29.1]} 52. Kc3 {[%clk 0:00:06.3]} 52... Be5+ {[%clk
0:01:27.1]} 53. Kb4 {[%clk 0:00:05.8]} 53... Qb1+ {[%clk 0:01:24]} 54. Kc5
{[%clk 0:00:05.3]} 54... Qg1+ {[%clk 0:01:20.4]} 55. Kb4 {[%clk 0:00:05.2]}
55... Qb6+ {[%clk 0:01:20.2]} 56. Ka3 {[%clk 0:00:05.1]} 56... Qb2+ {[%clk
0:01:19.7]} 57. Ka4 {[%clk 0:00:05.4]} 57... Bc6+ {[%clk 0:01:11]} 58. Ka5
{[%clk 0:00:05.4]} 58... Bc7+ {[%clk 0:01:08.9]} 59. Kxa6 {[%clk 0:00:04.3]}
59... Qb6# {[%clk 0:01:09.8]} 0-1

[Event "Early-Titled-Tuesday-Blitz-March-12-2024"]
[Site "Chess.com"]
[Date "2024.03.12"]
[Round "4"]
[White "Statham_01"]
[Black "Danny_Billiards"]
[Result "0-1"]
[WhiteElo "2581"]
[BlackElo "2797"]
[TimeControl "180+1"]
[EndTime "8:39:45 PDT"]
[Termination "Danny_Billiards won by resignation"]

1. e4 {[%clk 0:03:00.9]} 1... e6 {[%clk 0:02:59.8]} 2. d4 {[%clk 0:02:54.4]}
2... d5 {[%clk 0:03:00.7]} 3. Bd3 {[%clk 0:02:54]} 3... dxe4 {[%clk 0:02:57.8]}
4. Bxe4 {[%clk 0:02:54.9]} 4... Nf6 {[%clk 0:02:58]} 5. Bf3 {[%clk 0:02:55.4]}
5... c5 {[%clk 0:02:58.7]} 6. Ne2 {[%clk 0:02:55.7]} 6... Be7 {[%clk 0:02:55.5]}
7. Be3 {[%clk 0:02:55.2]} 7... O-O {[%clk 0:02:54]} 8. Nbc3 {[%clk 0:02:52.5]}
8... cxd4 {[%clk 0:02:49.7]} 9. Qxd4 {[%clk 0:02:52.1]} 9... Nc6 {[%clk
0:02:45.2]} 10. Qxd8 {[%clk 0:02:28.1]} 10... Rxd8 {[%clk 0:02:46.1]} 11. Ng3
{[%clk 0:01:56.8]} 11... Ne5 {[%clk 0:02:44.5]} 12. Be2 {[%clk 0:01:54.2]} 12...
Bd7 {[%clk 0:02:39.2]} 13. O-O-O {[%clk 0:01:52.5]} 13... Neg4 {[%clk
0:02:31.5]} 14. Bb5 {[%clk 0:01:24.4]} 14... Nxe3 {[%clk 0:02:23.6]} 15. fxe3
{[%clk 0:01:25.3]} 15... Bxb5 {[%clk 0:02:22.7]} 16. Nxb5 {[%clk 0:01:26.2]}
16... a6 {[%clk 0:02:23.3]} 17. Nd4 {[%clk 0:01:22]} 17... Nd5 {[%clk
0:02:20.3]} 18. e4 {[%clk 0:01:17.6]} 18... Ne3 {[%clk 0:02:17.3]} 19. Rd2
{[%clk 0:01:16.1]} 19... Nxg2 {[%clk 0:02:04]} 20. Kb1 {[%clk 0:00:32.2]} 20...
Ne3 {[%clk 0:02:02.9]} 21. c3 {[%clk 0:00:27.9]} 21... Bf6 {[%clk 0:01:56]} 22.
Re2 {[%clk 0:00:20.6]} 22... Nc4 {[%clk 0:01:54.4]} 23. Nf3 {[%clk 0:00:19.8]}
23... Rd3 {[%clk 0:01:51.3]} 24. Rf1 {[%clk 0:00:18]} 24... Ne5 {[%clk 0:01:42]}
25. Nd4 {[%clk 0:00:13.8]} 25... Ng4 {[%clk 0:01:40.5]} 26. Nh5 {[%clk
0:00:07.3]} 26... Bxd4 {[%clk 0:01:27.9]} 27. cxd4 {[%clk 0:00:08.2]} 27... g6
{[%clk 0:01:28.5]} 28. Nf4 {[%clk 0:00:03.8]} 28... Rxd4 {[%clk 0:01:28.5]} 29.
h3 {[%clk 0:00:04.3]} 29... Ne5 {[%clk 0:01:28.6]} 30. Rc1 {[%clk 0:00:02.6]}
30... Rad8 {[%clk 0:01:28.3]} 31. a3 {[%clk 0:00:02.2]} 31... Rd1 {[%clk
0:01:27.9]} 32. Rxd1 {[%clk 0:00:02.7]} 32... Rxd1+ {[%clk 0:01:28.8]} 33. Kc2
{[%clk 0:00:03.6]} 33... Rf1 {[%clk 0:01:27.9]} 34. Ng2 {[%clk 0:00:02.5]} 34...
Nc6 {[%clk 0:01:27.5]} 35. Kc3 {[%clk 0:00:01.5]} 35... Rf3+ {[%clk 0:01:27.1]}
36. Kc4 {[%clk 0:00:01.9]} 36... Rxh3 {[%clk 0:01:27.1]} 37. Nf4 {[%clk
0:00:01.7]} 37... Rh4 {[%clk 0:01:26.7]} 38. Nd3 {[%clk 0:00:01.7]} 38... Kg7
{[%clk 0:01:22.7]} 39. Kc5 {[%clk 0:00:02.6]} 39... h5 {[%clk 0:01:21.9]} 40.
Kd6 {[%clk 0:00:02.8]} 40... Rh3 {[%clk 0:01:20.1]} 41. Nc5 {[%clk 0:00:02.8]}
41... Nd4 {[%clk 0:01:19.7]} 42. Rf2 {[%clk 0:00:02.9]} 42... Rf3 {[%clk
0:01:14.8]} 43. Rd2 {[%clk 0:00:03]} 43... Nb3 {[%clk 0:01:14.9]} 44. Nxb3
{[%clk 0:00:02.1]} 44... Rxb3 {[%clk 0:01:15.8]} 45. Ke7 {[%clk 0:00:02.6]}
45... h4 {[%clk 0:01:14.4]} 46. Rf2 {[%clk 0:00:02.9]} 46... f5 {[%clk
0:01:14.9]} 47. e5 {[%clk 0:00:02.6]} 47... Rb6 {[%clk 0:01:10.8]} 48. Rd2
{[%clk 0:00:02.6]} 48... h3 {[%clk 0:01:04.2]} 49. Rd6 {[%clk 0:00:02.9]} 49...
Rxd6 {[%clk 0:00:58.6]} 50. exd6 {[%clk 0:00:03.8]} 50... h2 {[%clk 0:00:59.4]}
51. d7 {[%clk 0:00:04.5]} 51... h1=Q {[%clk 0:01:00.3]} 52. d8=Q {[%clk
0:00:05.1]} 52... Qh4+ {[%clk 0:01:01]} 0-1

[Event "Early-Titled-Tuesday-Blitz-March-12-2024"]
[Site "Chess.com"]
[Date "2024.03.12"]
[Round "4"]
[White "Sina_Movahed"]
[Black "manitodeplomo"]
[Result "0-1"]
[WhiteElo "3044"]
[BlackElo "2729"]
[TimeControl "180+1"]
[EndTime "8:39:46 PDT"]
[Termination "manitodeplomo won by resignation"]

1. e4 {[%clk 0:03:00.9]} 1... e6 {[%clk 0:02:58.1]} 2. d4 {[%clk 0:03:00.6]}
2... d5 {[%clk 0:02:58.6]} 3. e5 {[%clk 0:03:01.2]} 3... c5 {[%clk 0:02:58.2]}
4. c3 {[%clk 0:03:01.9]} 4... Nc6 {[%clk 0:02:58.7]} 5. Nf3 {[%clk 0:03:02.3]}
5... Bd7 {[%clk 0:02:59]} 6. Bd3 {[%clk 0:03:02.8]} 6... Rc8 {[%clk 0:02:58.2]}
7. O-O {[%clk 0:03:02.5]} 7... cxd4 {[%clk 0:02:56.5]} 8. cxd4 {[%clk
0:03:00.3]} 8... Nb4 {[%clk 0:02:56]} 9. Nc3 {[%clk 0:02:59.7]} 9... Nxd3 {[%clk
0:02:52.5]} 10. Qxd3 {[%clk 0:03:00.6]} 10... Ne7 {[%clk 0:02:51.8]} 11. h4
{[%clk 0:03:00.2]} 11... h6 {[%clk 0:02:44.1]} 12. h5 {[%clk 0:02:58.8]} 12...
Nc6 {[%clk 0:02:42.8]} 13. Bf4 {[%clk 0:02:50.6]} 13... Be7 {[%clk 0:02:40.3]}
14. Qd2 {[%clk 0:02:42.6]} 14... Na5 {[%clk 0:02:29.6]} 15. b3 {[%clk
0:02:30.5]} 15... Bb4 {[%clk 0:02:28.4]} 16. Rac1 {[%clk 0:02:31.1]} 16... a6
{[%clk 0:02:08]} 17. Rc2 {[%clk 0:02:12.4]} 17... Rc6 {[%clk 0:01:55.8]} 18.
Rfc1 {[%clk 0:02:06.7]} 18... Ba3 {[%clk 0:01:53.1]} 19. Rd1 {[%clk 0:02:05]}
19... Bb4 {[%clk 0:01:53]} 20. Qd3 {[%clk 0:02:04.2]} 20... Qc7 {[%clk 0:01:44]}
21. Rdc1 {[%clk 0:02:02.1]} 21... Ba3 {[%clk 0:01:41.9]} 22. Rd1 {[%clk
0:01:57.3]} 22... Bb4 {[%clk 0:01:41.4]} 23. Bd2 {[%clk 0:01:56]} 23... O-O
{[%clk 0:01:31.9]} 24. Rdc1 {[%clk 0:01:20.8]} 24... Ba3 {[%clk 0:01:14.3]} 25.
Rb1 {[%clk 0:01:18.9]} 25... Bb4 {[%clk 0:01:10.9]} 26. Ne1 {[%clk 0:01:15.6]}
26... Rc8 {[%clk 0:01:09.1]} 27. Nxd5 {[%clk 0:01:11.2]} 27... exd5 {[%clk
0:01:05.9]} 28. Bxb4 {[%clk 0:01:11.7]} 28... Rxc2 {[%clk 0:01:05.8]} 29. Nxc2
{[%clk 0:01:11.3]} 29... Qxc2 {[%clk 0:01:04.6]} 30. Qxc2 {[%clk 0:01:11.1]}
30... Rxc2 {[%clk 0:01:04.9]} 31. Bxa5 {[%clk 0:01:11.7]} 31... Rxa2 {[%clk
0:01:05]} 32. Bb4 {[%clk 0:01:11.7]} 32... Bg4 {[%clk 0:00:59.4]} 33. Rc1 {[%clk
0:01:02.7]} 33... Rb2 {[%clk 0:00:49.2]} 34. Rc3 {[%clk 0:01:01.4]} 34... Bxh5
{[%clk 0:00:47.4]} 35. Bd6 {[%clk 0:00:59.1]} 35... Bd1 {[%clk 0:00:45.1]} 36.
b4 {[%clk 0:00:58.6]} 36... b6 {[%clk 0:00:36.6]} 37. Rc8+ {[%clk 0:00:53]}
37... Kh7 {[%clk 0:00:36.2]} 38. f3 {[%clk 0:00:53.7]} 38... a5 {[%clk
0:00:32.7]} 39. bxa5 {[%clk 0:00:51.3]} 39... bxa5 {[%clk 0:00:33.6]} 40. Rc7
{[%clk 0:00:47.5]} 40... Kg6 {[%clk 0:00:29.6]} 41. e6 {[%clk 0:00:47.7]} 41...
fxe6 {[%clk 0:00:20.4]} 42. Be5 {[%clk 0:00:47.8]} 42... a4 {[%clk 0:00:19.6]}
43. Rxg7+ {[%clk 0:00:39.5]} 43... Kh5 {[%clk 0:00:19.7]} 44. Bf6 {[%clk
0:00:24.9]} 44... Bxf3 {[%clk 0:00:19.1]} 45. gxf3 {[%clk 0:00:25.8]} 45... a3
{[%clk 0:00:19.2]} 0-1

[Event "Early-Titled-Tuesday-Blitz-March-12-2024"]
[Site "Chess.com"]
[Date "2024.03.12"]
[Round "4"]
[White "Vladimir_Zakhartsov"]
[Black "BilicVladimir"]
[Result "1-0"]
[WhiteElo "2859"]
[BlackElo "2659"]
[TimeControl "180+1"]
[EndTime "8:39:46 PDT"]
[Termination "Vladimir_Zakhartsov won by resignation"]

1. d4 {[%clk 0:03:00.9]} 1... d5 {[%clk 0:02:59.5]} 2. c4 {[%clk 0:03:01]} 2...
c6 {[%clk 0:02:59.9]} 3. cxd5 {[%clk 0:03:00.4]} 3... cxd5 {[%clk 0:02:59.2]} 4.
Bf4 {[%clk 0:03:01]} 4... Nc6 {[%clk 0:02:59.7]} 5. e3 {[%clk 0:03:01.3]} 5...
Nf6 {[%clk 0:02:58.8]} 6. Bb5 {[%clk 0:03:01.2]} 6... Bd7 {[%clk 0:02:58]} 7.
Nf3 {[%clk 0:03:00.9]} 7... Qa5+ {[%clk 0:02:50.5]} 8. Nc3 {[%clk 0:03:00.6]}
8... Ne4 {[%clk 0:02:50.7]} 9. Qb3 {[%clk 0:02:54.4]} 9... Nxc3 {[%clk
0:02:35.7]} 10. bxc3 {[%clk 0:02:55]} 10... e6 {[%clk 0:02:34.4]} 11. O-O {[%clk
0:02:54.1]} 11... Be7 {[%clk 0:02:32.6]} 12. c4 {[%clk 0:02:53.1]} 12... dxc4
{[%clk 0:02:28.6]} 13. Bxc4 {[%clk 0:02:52.9]} 13... Qb4 {[%clk 0:02:25.4]} 14.
Qxb4 {[%clk 0:02:23.2]} 14... Bxb4 {[%clk 0:02:22.9]} 15. Rab1 {[%clk
0:02:19.1]} 15... b6 {[%clk 0:02:21]} 16. d5 {[%clk 0:02:12.9]} 16... exd5
{[%clk 0:02:11.6]} 17. Bxd5 {[%clk 0:02:13.8]} 17... Bc5 {[%clk 0:02:07.1]} 18.
Ne5 {[%clk 0:02:13]} 18... Rc8 {[%clk 0:02:02]} 19. Bxf7+ {[%clk 0:01:53.2]}
19... Ke7 {[%clk 0:01:56.4]} 20. Nxd7 {[%clk 0:01:43.8]} 20... Kxd7 {[%clk
0:01:46]} 21. Rfd1+ {[%clk 0:01:30.7]} 21... Ke7 {[%clk 0:01:45.9]} 22. Bd5
{[%clk 0:01:30]} 22... Nb4 {[%clk 0:01:39.5]} 23. Bb3 {[%clk 0:01:29.9]} 23...
Nc6 {[%clk 0:01:14.4]} 24. g4 {[%clk 0:01:25]} 24... h6 {[%clk 0:01:14.2]} 25.
h4 {[%clk 0:01:24.5]} 25... Rhd8 {[%clk 0:01:11.5]} 26. g5 {[%clk 0:01:23.3]}
26... Bd6 {[%clk 0:01:08.2]} 27. gxh6 {[%clk 0:01:16.5]} 27... Bxf4 {[%clk
0:01:07.3]} 28. Rxd8 {[%clk 0:01:15.9]} 28... Nxd8 {[%clk 0:00:45.8]} 29. hxg7
{[%clk 0:00:56.6]} 29... Ne6 {[%clk 0:00:45.7]} 30. Bxe6 {[%clk 0:00:46.8]}
30... Kxe6 {[%clk 0:00:45.7]} 31. exf4 {[%clk 0:00:47.4]} 31... Rg8 {[%clk
0:00:44.3]} 32. Rb5 {[%clk 0:00:40]} 32... Rxg7+ {[%clk 0:00:44.3]} 33. Rg5
{[%clk 0:00:40.6]} 33... Rb7 {[%clk 0:00:44]} 34. h5 {[%clk 0:00:34.4]} 34... b5
{[%clk 0:00:44.2]} 35. h6 {[%clk 0:00:33.4]} 35... a5 {[%clk 0:00:43.4]} 36. Rh5
{[%clk 0:00:27.1]} 36... Rb8 {[%clk 0:00:35.2]} 37. h7 {[%clk 0:00:27.1]} 37...
Rh8 {[%clk 0:00:34.9]} 38. Rxb5 {[%clk 0:00:27.7]} 38... Rxh7 {[%clk 0:00:35.2]}
39. Rxa5 {[%clk 0:00:28.3]} 39... Rb7 {[%clk 0:00:34.8]} 40. Kg2 {[%clk
0:00:28]} 40... Rb2 {[%clk 0:00:33.7]} 41. Kg3 {[%clk 0:00:26.4]} 41... Kf6
{[%clk 0:00:33.7]} 42. Ra8 {[%clk 0:00:26.6]} 42... Kf5 {[%clk 0:00:32.7]} 43.
a4 {[%clk 0:00:25.3]} 43... Rb3+ {[%clk 0:00:32]} 44. f3 {[%clk 0:00:25.8]}
44... Rb1 {[%clk 0:00:31.9]} 45. a5 {[%clk 0:00:26.3]} 45... Rg1+ {[%clk
0:00:25.4]} 46. Kf2 {[%clk 0:00:26.4]} 46... Ra1 {[%clk 0:00:26.3]} 47. a6
{[%clk 0:00:26.9]} 47... Kg6 {[%clk 0:00:26.6]} 48. a7 {[%clk 0:00:26.3]} 48...
Kg7 {[%clk 0:00:26.8]} 49. f5 {[%clk 0:00:26.4]} 49... Ra3 {[%clk 0:00:22.8]}
50. f6+ {[%clk 0:00:25.6]} 50... Kh7 {[%clk 0:00:21.8]} 51. f7 {[%clk
0:00:25.1]} 1-0

[Event "Early-Titled-Tuesday-Blitz-March-12-2024"]
[Site "Chess.com"]
[Date "2024.03.12"]
[Round "4"]
[White "becemix"]
[Black "Resignify"]
[Result "1-0"]
[WhiteElo "2457"]
[BlackElo "2252"]
[TimeControl "180+1"]
[EndTime "8:39:51 PDT"]
[Termination "becemix won on time"]

1. e4 {[%clk 0:02:44.5]} 1... Nf6 {[%clk 0:02:59.1]} 2. e5 {[%clk 0:02:44]} 2...
Nd5 {[%clk 0:02:59.4]} 3. c4 {[%clk 0:02:43.9]} 3... Nb6 {[%clk 0:02:59.6]} 4.
d4 {[%clk 0:02:44]} 4... d6 {[%clk 0:03:00]} 5. exd6 {[%clk 0:02:44.9]} 5...
exd6 {[%clk 0:03:00.3]} 6. Nc3 {[%clk 0:02:44.6]} 6... Be7 {[%clk 0:03:00]} 7.
Bd3 {[%clk 0:02:44.7]} 7... O-O {[%clk 0:03:00.1]} 8. Nge2 {[%clk 0:02:45.2]}
8... Bg4 {[%clk 0:02:57.7]} 9. f3 {[%clk 0:02:45.3]} 9... Bh5 {[%clk 0:02:57.7]}
10. O-O {[%clk 0:02:43.8]} 10... Bg6 {[%clk 0:02:57.9]} 11. Bxg6 {[%clk
0:02:41.7]} 11... hxg6 {[%clk 0:02:56.8]} 12. d5 {[%clk 0:02:42.2]} 12... Nxc4
{[%clk 0:02:56.2]} 13. a4 {[%clk 0:02:37.4]} 13... a5 {[%clk 0:02:50.8]} 14. Qb3
{[%clk 0:02:30.2]} 14... Nb6 {[%clk 0:02:47]} 15. Be3 {[%clk 0:02:29.8]} 15...
N8d7 {[%clk 0:02:46.2]} 16. Rac1 {[%clk 0:02:29.3]} 16... Re8 {[%clk 0:02:39.9]}
17. Nb5 {[%clk 0:02:25.7]} 17... Nc5 {[%clk 0:02:34.3]} 18. Bxc5 {[%clk
0:02:19.5]} 18... dxc5 {[%clk 0:02:35.2]} 19. Rfd1 {[%clk 0:02:10]} 19... Bd6
{[%clk 0:02:35.1]} 20. Nxd6 {[%clk 0:02:03.9]} 20... cxd6 {[%clk 0:02:34.9]} 21.
Nc3 {[%clk 0:02:03.1]} 21... Rb8 {[%clk 0:01:45.4]} 22. Re1 {[%clk 0:01:53.1]}
22... Rxe1+ {[%clk 0:01:39.6]} 23. Rxe1 {[%clk 0:01:54]} 23... Nd7 {[%clk
0:01:35.1]} 24. Qb5 {[%clk 0:01:49.4]} 24... Nf6 {[%clk 0:01:23.9]} 25. g4
{[%clk 0:01:31.7]} 25... b6 {[%clk 0:01:06.1]} 26. Kg2 {[%clk 0:01:27.7]} 26...
Kf8 {[%clk 0:01:00.4]} 27. Kg3 {[%clk 0:01:21.6]} 27... Qd7 {[%clk 0:00:56.8]}
28. Qxd7 {[%clk 0:01:08.3]} 28... Nxd7 {[%clk 0:00:57.7]} 29. Nb5 {[%clk
0:01:02.5]} 29... Ne5 {[%clk 0:00:51.1]} 30. Nxd6 {[%clk 0:00:56]} 30... Nd3
{[%clk 0:00:43.7]} 31. Re2 {[%clk 0:00:52.3]} 31... Rd8 {[%clk 0:00:41.2]} 32.
Nc4 {[%clk 0:00:51.7]} 32... Rxd5 {[%clk 0:00:38.4]} 33. Nxb6 {[%clk 0:00:50.9]}
33... Rd4 {[%clk 0:00:36.9]} 34. Rd2 {[%clk 0:00:46.2]} 34... f6 {[%clk
0:00:35.3]} 35. b3 {[%clk 0:00:46.1]} 35... Kf7 {[%clk 0:00:25.8]} 36. Nc4
{[%clk 0:00:45.4]} 36... Ke6 {[%clk 0:00:04.5]} 37. Nxa5 {[%clk 0:00:44.6]}
37... g5 {[%clk 0:00:02.3]} 38. Nc4 {[%clk 0:00:38.2]} 38... Kd5 {[%clk
0:00:02.7]} 39. a5 {[%clk 0:00:37.8]} 39... Kc6 {[%clk 0:00:03.2]} 40. a6 {[%clk
0:00:36.6]} 40... Nb4 {[%clk 0:00:01.3]} 41. a7 {[%clk 0:00:24.3]} 1-0

[Event "Early-Titled-Tuesday-Blitz-March-12-2024"]
[Site "Chess.com"]
[Date "2024.03.12"]
[Round "4"]
[White "Koalaskakistis"]
[Black "martinmena"]
[Result "1-0"]
[WhiteElo "2521"]
[BlackElo "2272"]
[TimeControl "180+1"]
[EndTime "8:39:58 PDT"]
[Termination "Koalaskakistis won on time"]

1. e4 {[%clk 0:02:55.8]} 1... c6 {[%clk 0:02:59.6]} 2. d4 {[%clk 0:02:52.5]}
2... d5 {[%clk 0:03:00.5]} 3. exd5 {[%clk 0:02:52.9]} 3... cxd5 {[%clk
0:03:00.2]} 4. Bd3 {[%clk 0:02:47]} 4... Nc6 {[%clk 0:03:00.2]} 5. c3 {[%clk
0:02:47.1]} 5... Qc7 {[%clk 0:03:00.9]} 6. h3 {[%clk 0:02:35.3]} 6... g6 {[%clk
0:03:00.9]} 7. Nf3 {[%clk 0:02:34]} 7... Bf5 {[%clk 0:02:58]} 8. Bxf5 {[%clk
0:02:29.8]} 8... gxf5 {[%clk 0:02:58.9]} 9. O-O {[%clk 0:02:30.3]} 9... Nf6
{[%clk 0:02:57.6]} 10. Re1 {[%clk 0:02:28.8]} 10... e6 {[%clk 0:02:56.8]} 11.
Nbd2 {[%clk 0:02:24.3]} 11... Ne4 {[%clk 0:02:53.1]} 12. Nxe4 {[%clk 0:02:18.5]}
12... dxe4 {[%clk 0:02:45.1]} 13. Ne5 {[%clk 0:02:04.5]} 13... Nxe5 {[%clk
0:02:35.6]} 14. dxe5 {[%clk 0:02:05.4]} 14... Qxe5 {[%clk 0:02:23.3]} 15. g3
{[%clk 0:01:47.1]} 15... Rg8 {[%clk 0:02:16.1]} 16. Kh2 {[%clk 0:01:23.7]} 16...
Qd5 {[%clk 0:02:10.2]} 17. Qa4+ {[%clk 0:01:17.6]} 17... b5 {[%clk 0:02:08.4]}
18. Qa6 {[%clk 0:01:17.8]} 18... Bc5 {[%clk 0:01:23.6]} 19. Qxb5+ {[%clk
0:01:07.2]} 19... Ke7 {[%clk 0:01:23]} 20. Rd1 {[%clk 0:01:03.2]} 20... Rab8
{[%clk 0:00:28.4]} 21. Bg5+ {[%clk 0:00:41.5]} 21... f6 {[%clk 0:00:19]} 22. Qe2
{[%clk 0:00:28.1]} 22... Qc6 {[%clk 0:00:16.3]} 23. Bf4 {[%clk 0:00:26.2]} 23...
e5 {[%clk 0:00:15.6]} 24. Be3 {[%clk 0:00:22.5]} 24... Bxe3 {[%clk 0:00:16.1]}
25. Qxe3 {[%clk 0:00:23.4]} 25... Rxb2 {[%clk 0:00:15.3]} 26. Qxa7+ {[%clk
0:00:24]} 26... Rb7 {[%clk 0:00:15.5]} 27. Qa3+ {[%clk 0:00:24.5]} 27... Kf7
{[%clk 0:00:16]} 28. Rab1 {[%clk 0:00:24.3]} 28... Rgb8 {[%clk 0:00:16]} 29. Rd6
{[%clk 0:00:20.4]} 29... Qxd6 {[%clk 0:00:14.4]} 30. Rxb7+ {[%clk 0:00:20.5]}
30... Rxb7 {[%clk 0:00:09]} 31. Qxd6 {[%clk 0:00:21.4]} 31... Rb2 {[%clk
0:00:08.6]} 32. Kg1 {[%clk 0:00:18.2]} 32... Rb1+ {[%clk 0:00:07.2]} 33. Kg2
{[%clk 0:00:18.5]} 33... Rb2 {[%clk 0:00:08.1]} 34. Qc5 {[%clk 0:00:15.7]} 34...
f4 {[%clk 0:00:05.8]} 35. gxf4 {[%clk 0:00:15.9]} 35... exf4 {[%clk 0:00:04.5]}
36. Qd5+ {[%clk 0:00:16.5]} 36... Kg7 {[%clk 0:00:05.1]} 37. Qxe4 {[%clk
0:00:15.8]} 37... Rxa2 {[%clk 0:00:05.6]} 38. Qxf4 {[%clk 0:00:15]} 38... Rc2
{[%clk 0:00:06.1]} 39. Qg4+ {[%clk 0:00:14.5]} 39... Kf7 {[%clk 0:00:04]} 40.
Qd7+ {[%clk 0:00:15.1]} 40... Kf8 {[%clk 0:00:02.1]} 41. Qd8+ {[%clk 0:00:13.2]}
41... Kg7 {[%clk 0:00:02.6]} 42. Qe7+ {[%clk 0:00:13]} 42... Kg8 {[%clk
0:00:02.7]} 43. c4 {[%clk 0:00:11.6]} 43... Rc3 {[%clk 0:00:01.7]} 44. Qxf6
{[%clk 0:00:11.2]} 44... h5 {[%clk 0:00:01.9]} 45. Qxc3 {[%clk 0:00:11.2]} 1-0